bitfinex/quotes_ETHUSD_20241109
["timestamp","ask_amount","ask_price","bid_price","bid_amount"]
[1731114046176,0.00623931,2978.9,2978.6,0.06713405]
[1731114047280,0.00623931,2978.9,2978.5,3.0]
[1731114047849,0.00623931,2978.9,2978.6,0.06713399]
[1731114048162,0.00623931,2978.9,2978.6,0.06713407]
[1731114048369,0.00623931,2978.9,2978.5,3.0]
[1731114048571,0.00623931,2978.9,2978.5,3.58449136]
[1731114048970,0.00623931,2978.9,2978.6,0.06713396]
[1731114049388,0.5756,2978.2,2977.3,2.84491361]
[1731114049554,0.5756,2978.2,2977.6,2.99770817]
[1731114049752,0.5756,2978.2,2977.7,0.37499082]
[1731114050463,0.00623931,2978.8,2977.9,2.84491361]
[1731114050679,0.58183931,2978.9,2978.3,3.0]
[1731114051351,0.58183931,2978.9,2978.4,0.0671351]
[1731114051552,0.58183931,2978.9,2978.4,3.0671351]
[1731114051855,0.00623931,2979.1,2978.4,3.7239825]
[1731114052089,0.00623931,2979.1,2978.4,3.72397889]
[1731114052294,0.00623931,2979.1,2978.4,3.65684783]
[1731114052597,0.00623931,2979.1,2978.5,0.7158191]
[1731114054493,0.00623931,2979.1,2978.4,3.0]
[1731114054850,0.00623931,2978.9,2977.9,3.50134322]
[1731114055114,0.00623931,2978.4,2977.5,4.25354322]
[1731114055313,0.00623931,2978.4,2977.6,0.15279179]
[1731114056599,0.00623931,2978.4,2977.6,3.15279179]
[1731114057289,0.5756,2978.6,2977.6,3.15279179]
[1731114057290,0.00623931,2978.1,2977.7,0.06714708]
[1731114057495,0.5756,2978.6,2977.1,0.1401133]
[1731114057496,0.5756,2977.8,2977.1,0.1401133]
[1731114058131,0.00623931,2977.7,2977.1,0.1401133]
[1731114058627,0.00623931,2977.7,2977.1,0.50425895]
[1731114059802,0.5756,2977.8,2977.3,3.50134322]
[1731114060004,0.5756,2978.1,2977.4,3.06715792]
[1731114060207,0.5756,2978.1,2977.4,3.80039803]
[1731114060406,0.5756,2978.4,2977.8,3.0]
[1731114061225,0.00623931,2978.5,2977.8,3.0]
[1731114062415,0.00623931,2978.2,2977.8,3.0]
[1731114062603,0.00623931,2978.2,2977.4,3.0]
[1731114062806,0.01,2979.2,2977.4,3.72652432]
[1731114062807,0.00623931,2977.9,2977.4,3.72652432]
[1731114063006,0.00623931,2978.2,2977.8,3.0]
[1731114063693,0.00623931,2978.2,2977.9,0.06714979]
[1731114064092,0.00623931,2978.5,2977.9,0.06714979]
[1731114064330,0.00623931,2978.5,2977.9,0.83104979]
[1731114064642,0.00623931,2978.5,2978.0,0.38310498]
[1731114064929,3.0,2979.8,2978.0,0.38310498]
[1731114064930,0.00623931,2978.9,2978.2,3.0]
[1731114065236,0.00623931,2978.9,2978.3,0.06713589]
[1731114065394,0.00623931,2978.9,2978.2,3.0]
[1731114065596,0.00623931,2978.9,2978.3,0.06713594]
[1731114065937,0.5756,2979.0,2978.3,0.72398386]
[1731114066135,0.5756,2979.0,2978.3,0.65684792]
[1731114066497,0.58183931,2979.3,2978.6,3.7639]
[1731114067801,0.00623931,2978.9,2978.6,3.0]
[1731114067999,0.00623931,2978.9,2978.2,3.19028791]
[1731114068230,0.00623931,2978.9,2978.3,0.74555311]
[1731114068398,0.00623931,2978.5,2978.2,3.19028791]
[1731114068598,0.00623931,2978.5,2977.8,3.7639]
[1731114069135,0.5756,2978.7,2977.8,3.7639]
[1731114070152,0.00623931,2978.5,2977.8,3.7639]
[1731114070525,0.00623931,2978.1,2977.5,0.7639]
[1731114070727,0.58183931,2978.1,2977.3,3.50134322]
[1731114071058,0.58183931,2978.1,2977.4,0.42652432]
[1731114071239,0.58183931,2978.1,2977.3,3.50134322]
[1731114071415,0.00623931,2977.9,2977.3,3.50134322]
[1731114072160,0.00623931,2977.7,2977.3,3.50134322]
[1731114072824,0.00623931,2977.7,2977.4,3.0]
[1731114074559,0.01,2978.6,2977.3,3.50134322]
[1731114074560,0.00623931,2977.9,2977.3,3.50134322]
[1731114074764,0.5756,2977.8,2977.3,3.50134322]
[1731114075871,0.00623931,2977.7,2977.1,0.1401133]
[1731114076655,0.5756,2977.8,2977.2,0.06716369]
[1731114076855,0.5756,2977.8,2977.1,0.1401133]
[1731114077057,0.5756,2977.8,2977.1,3.1401133]
[1731114077266,0.5756,2977.8,2977.1,3.87947895]
[1731114077421,0.00623931,2977.6,2977.2,0.06716187]
[1731114078355,0.00623931,2977.6,2977.2,0.06716368]
[1731114078873,0.00623931,2977.6,2977.1,3.1401133]
[1731114079660,0.00623931,2977.6,2977.2,0.0671628]
[1731114079930,0.00623931,2977.6,2977.2,0.0671653]
[1731114081281,0.00623931,2977.6,2977.1,3.1401133]
[1731114082230,0.00623931,2977.6,2977.1,3.87142177]
[1731114082831,0.00623931,2977.6,2977.1,0.87142177]
[1731114083142,0.00623931,2977.6,2977.2,0.0671628]
[1731114083552,0.00623931,2977.6,2977.2,3.0671628]
[1731114084234,0.5756,2977.5,2977.2,3.0671628]
[1731114084436,0.5756,2977.5,2977.2,3.0]
[1731114084933,0.5756,2977.5,2977.3,0.06716413]
[1731114085157,0.5756,2977.5,2977.1,0.1401133]
[1731114085573,0.5756,2977.5,2977.1,3.1401133]
[1731114086128,0.5756,2977.5,2977.2,0.06716559]
[1731114087071,0.00623931,2977.4,2977.1,3.1401133]
[1731114087747,0.00623931,2977.4,2977.2,0.06716967]
[1731114087982,0.00623931,2977.4,2977.1,3.1401133]
[1731114088161,0.00623931,2977.4,2977.2,0.06716936]
[1731114088877,0.5756,2977.5,2977.2,0.06716936]
[1731114091050,0.00623931,2977.6,2977.2,0.06716936]
[1731114091250,0.58183931,2977.8,2977.2,0.06716936]
[1731114091453,0.00623931,2977.6,2977.2,0.06716936]
[1731114092742,0.5756,2977.8,2977.2,0.06716936]
[1731114092743,0.00623931,2977.4,2977.2,0.06716936]
[1731114094488,0.00623931,2977.6,2977.2,0.06716936]
[1731114098903,0.00623931,2977.4,2977.2,0.06716936]
[1731114099099,0.00623931,2977.4,2977.1,3.1401133]
[1731114099100,0.00623931,2977.4,2977.1,0.1401133]
[1731114102315,0.00623931,2977.6,2977.3,2.847352]
[1731114102479,0.00623931,2977.6,2977.4,0.06716348]
[1731114102878,0.5756,2977.8,2977.4,0.06716348]
[1731114103087,0.5756,2977.8,2977.3,2.847352]
[1731114104380,0.58183931,2978.1,2977.6,2.847352]
[1731114104697,0.5756,2978.1,2977.7,0.0671564]
[1731114105099,0.00623931,2978.4,2977.7,0.0671564]
[1731114105437,0.00623931,2978.4,2978.2,2.847352]
[1731114105605,0.58183931,2978.6,2978.0,2.847352]
[1731114108233,0.00623931,2978.8,2978.1,3.06714374]
[1731114108729,0.00623931,2978.8,2978.1,3.0]
[1731114109634,0.00623931,2978.8,2978.2,0.06713951]
[1731114109813,0.00623931,2978.8,2978.1,3.0]
[1731114111485,0.5756,2978.9,2978.1,3.0]
[1731114111805,0.5756,2978.9,2978.2,0.6618152]
[1731114112019,0.01,2980.0,2978.6,2.847352]
[1731114112020,0.5756,2979.2,2978.6,2.847352]
[1731114112184,0.5756,2979.2,2978.7,3.0]
[1731114112380,0.00623931,2979.3,2979.0,3.0]
[1731114112640,0.00623931,2979.3,2979.1,0.06712501]
[1731114113688,0.5756,2979.5,2979.1,0.06712501]
[1731114113891,0.00623931,2979.9,2979.3,3.0]
[1731114114101,0.5756,2980.0,2979.5,2.847352]
[1731114114299,0.58183931,2980.3,2979.6,3.0]
[1731114114501,0.00623931,2980.1,2979.6,3.0]
[1731114114691,0.00623931,2980.5,2979.7,0.7708]
[1731114114893,0.00623931,2980.5,2979.9,3.0]
[1731114115230,0.00623931,2980.5,2979.7,1.4326152]
[1731114115231,0.00623931,2980.3,2979.7,0.7708]
[1731114116299,0.00623931,2980.5,2979.9,3.0]
[1731114116508,0.00623931,2980.5,2980.0,0.06710243]
[1731114116924,0.00623931,2980.7,2980.1,2.847352]
[1731114117408,0.00623931,2980.7,2980.0,5.847352]
[1731114118342,0.58183931,2981.2,2980.6,2.847352]
[1731114118492,0.58183931,2981.2,2980.7,3.0670847]
[1731114118828,0.01,2982.0,2980.7,3.0670847]
[1731114118829,0.5756,2981.5,2980.7,3.8555847]
[1731114119062,0.58183931,2981.5,2981.0,3.0]
[1731114119230,0.58183931,2981.5,2981.1,0.06708018]
[1731114119231,0.00623931,2981.3,2981.1,0.06708018]
[1731114119416,0.00623931,2981.3,2981.0,3.0]
[1731114119737,0.58183931,2981.5,2981.1,0.06708024]
[1731114120098,0.58183931,2981.5,2981.0,3.0]
[1731114120618,0.58183931,2981.5,2980.1,0.58849589]
[1731114120619,0.00623931,2980.7,2979.5,0.7885]
[1731114120793,0.00623931,2980.7,2979.9,2.847352]
[1731114120998,0.00623931,2980.7,2980.0,0.2847352]
[1731114122032,0.00623931,2980.7,2980.2,2.847352]
[1731114122200,0.00623931,2980.7,2980.3,3.0670934]
[1731114122400,0.58183931,2980.9,2980.3,3.0670934]
[1731114122858,0.58183931,2980.9,2980.3,3.0]
[1731114123021,0.58183931,2980.9,2980.3,3.73067654]
[1731114123808,0.5756,2981.2,2980.6,3.0]
[1731114124014,0.3256,2981.2,2980.7,0.06708365]
[1731114124354,0.00623931,2981.7,2980.8,3.94256036]
[1731114124661,0.00623931,2981.5,2980.9,3.06707569]
[1731114125011,0.00623931,2981.8,2980.9,3.0]
[1731114125234,0.00623931,2981.8,2981.2,3.0]
[1731114125656,0.00623931,2981.8,2981.3,0.0670705]
[1731114125815,0.00623931,2981.6,2980.9,3.0]
[1731114126012,0.01,2982.2,2980.6,3.0]
[1731114126013,0.00623931,2981.1,2980.6,3.0]
[1731114126359,0.00623931,2981.1,2980.4,0.7885]
[1731114126649,0.00623931,2981.1,2980.5,0.37885]
[1731114126948,0.3256,2981.0,2980.5,3.226202]
[1731114127251,0.3256,2981.0,2980.6,3.06708462]
[1731114127745,0.33183931,2981.3,2980.6,3.06708462]
[1731114127954,0.3256,2981.6,2980.9,3.0]
[1731114128313,0.3256,2981.6,2981.1,2.847352]
[1731114128517,0.3256,2981.6,2981.2,3.06707344]
[1731114129056,0.00623931,2981.3,2980.6,0.7885]
[1731114129251,0.01,2982.0,2980.3,3.0]
[1731114129252,0.3256,2981.0,2980.3,3.0]
[1731114129750,0.3256,2981.0,2980.6,3.0]
[1731114130049,0.3256,2981.0,2980.5,3.0]
[1731114130264,0.00623931,2980.9,2980.1,2.847352]
[1731114131667,0.00623931,2980.9,2980.3,0.7885]
[1731114131878,0.3256,2984.2,2981.8,3.0]
[1731114131879,0.3256,2982.6,2981.8,3.0]
[1731114132077,0.3256,2982.6,2981.9,2.56833827]
[1731114132389,0.3256,2982.6,2981.9,1.57693672]
[1731114132793,0.3256,2982.6,2981.8,3.0]
[1731114133147,0.3256,2982.6,2981.8,3.06705596]
[1731114133446,0.3256,2982.6,2981.3,0.7885]
[1731114133647,0.3256,2982.6,2981.4,3.0]
[1731114134484,0.3256,2982.6,2981.4,3.06706607]
[1731114134645,0.3256,2982.6,2981.0,0.7885]
[1731114134849,0.3256,2982.6,2981.2,3.0]
[1731114135351,0.3256,2982.6,2981.1,3.49463019]
[1731114135550,0.3256,2982.6,2981.2,3.42831302]
[1731114135788,0.3356,2983.0,2981.2,3.42831302]
[1731114135957,0.3356,2983.0,2981.9,3.49463019]
[1731114136157,0.3356,2983.0,2982.0,0.06705767]
[1731114136158,0.3256,2983.0,2982.0,0.06705767]
[1731114136393,0.3256,2983.0,2982.0,3.0]
[1731114136679,0.3256,2983.0,2982.1,0.72831302]
[1731114136980,0.3256,2983.0,2982.2,0.06704497]
[1731114137180,0.3256,2983.0,2982.1,0.72831302]
[1731114137492,0.3256,2983.0,2981.9,0.7885]
[1731114137782,0.3256,2983.0,2982.0,3.0]
[1731114138344,0.3256,2983.0,2982.1,0.06704974]
[1731114141148,0.2756,2983.0,2982.1,0.06704974]
[1731114142485,0.2756,2983.0,2981.5,0.7573]
[1731114142486,0.2856,2983.0,2981.5,0.7573]
[1731114143468,0.01,2982.9,2981.2,6.02138321]
[1731114143781,0.01,2982.6,2981.2,1.34114]
[1731114143957,0.01,2982.4,2980.8,0.7573]
[1731114144157,0.2756,2982.3,2981.1,1.341258]
[1731114144371,0.2756,2982.3,2980.8,4.25193019]
[1731114144694,0.2756,2982.3,2980.9,0.70079302]
[1731114145201,0.2756,2981.9,2980.9,0.2756]
[1731114145346,0.2756,2981.9,2980.3,3.49463019]
[1731114145551,0.01,2981.8,2980.6,0.2756]
[1731114145775,0.01,2981.8,2980.3,3.49463019]
[1731114145776,0.2756,2981.7,2980.3,3.49463019]
[1731114145976,0.02,2981.8,2980.3,3.49463019]
[1731114145977,0.2756,2981.5,2980.3,3.84409321]
[1731114146548,0.2756,2981.5,2980.4,0.06708973]
[1731114147375,0.2756,2981.5,2980.2,1.341621]
[1731114147561,0.01,2981.4,2979.9,4.25193019]
[1731114147762,0.2756,2981.3,2980.2,0.2756]
[1731114148605,0.2756,2981.3,2980.0,3.0]
[1731114148750,0.01,2981.2,2979.9,3.49463019]
[1731114148958,0.2756,2981.1,2979.9,3.49463019]
[1731114149157,0.2756,2981.1,2979.9,3.87256673]
[1731114149356,0.2756,2981.1,2979.9,4.14816673]
[1731114150071,0.2756,2981.1,2980.0,3.0]
[1731114150792,0.2756,2981.1,2980.1,0.06709774]
[1731114150983,0.2756,2981.1,2980.3,3.44463019]
[1731114151181,0.2756,2981.1,2980.4,0.06709411]
[1731114151755,0.2756,2981.4,2980.7,3.49463019]
[1731114151954,0.2756,2981.4,2980.8,0.06707869]
[1731114152704,0.2756,2981.4,2980.8,3.06707869]
[1731114152901,0.2756,2981.4,2980.9,0.65617089]
[1731114153107,0.2756,2982.3,2981.0,0.0670775]
[1731114153294,0.2756,2982.3,2980.9,0.65617089]
[1731114153471,0.2756,2982.3,2981.0,0.06706944]
[1731114154613,0.2756,2982.3,2980.9,0.65617089]
[1731114154903,0.2756,2982.3,2981.0,0.36561709]
[1731114155088,0.2756,2982.3,2981.0,0.43268655]
[1731114155610,0.2756,2982.3,2981.5,3.49463019]
[1731114155808,0.2756,2982.3,2981.6,3.0]
[1731114156105,0.2756,2982.3,2981.6,3.06706059]
[1731114156318,0.2756,2982.3,2981.7,0.65616908]
[1731114156485,0.2756,2982.3,2981.8,0.06706058]
[1731114157606,0.2756,2982.3,2981.8,1.340896]
[1731114158028,0.2756,2982.3,2981.9,0.06705588]
[1731114158512,0.2756,2982.3,2981.8,1.340896]
[1731114158679,0.2756,2982.3,2981.8,0.49970651]
[1731114159014,0.2756,2982.3,2981.9,0.06705547]
[1731114159204,0.01,2983.3,2981.9,0.06705547]
[1731114159205,0.2756,2983.2,2981.9,0.06705547]
[1731114159394,0.2756,2983.2,2982.0,3.0]
[1731114159568,0.2756,2983.2,2982.1,0.8061285]
[1731114160099,0.2756,2983.2,2982.1,0.73907857]
[1731114164987,0.2756,2983.2,2982.2,0.06704997]
[1731114166476,0.2756,2983.2,2982.1,0.73907857]
[1731114166679,0.2856,2983.2,2982.0,3.0]
[1731114166901,0.2856,2983.2,2981.8,0.49970651]
[1731114167319,0.01,2983.2,2981.9,0.06705201]
[1731114168420,0.01,2983.2,2981.9,3.5616822]
[1731114168728,1.05191713,2984.1,2981.9,3.5616822]
[1731114168729,0.01,2983.4,2982.0,3.40613887]
[1731114168897,0.01,2983.4,2982.1,0.06704775]
[1731114170216,0.2256,2983.3,2982.1,0.06704775]
[1731114170420,0.2256,2983.3,2982.2,0.41436643]
[1731114171674,0.2256,2983.3,2982.2,3.41436643]
[1731114172017,0.2256,2983.3,2982.4,2.83784223]
[1731114172224,0.2256,2983.3,2982.5,3.0]
[1731114178030,0.2256,2983.3,2983.0,2.83784223]
[1731114178233,0.2256,2983.3,2983.1,0.35081939]
[1731114179835,0.2256,2984.2,2983.1,0.28378422]
[1731114180153,0.2256,2984.2,2983.0,2.83784223]
[1731114180544,0.2356,2984.2,2983.0,2.83784223]
[1731114181459,0.2356,2984.2,2983.1,0.06703259]
[1731114181828,0.2256,2984.2,2983.1,0.06703259]
[1731114182144,0.2356,2984.2,2983.1,0.06703259]
[1731114182345,0.2256,2984.2,2983.1,0.35752007]
[1731114182658,0.01,2983.9,2982.5,3.0]
[1731114182971,0.01,2983.9,2981.9,0.55956765]
[1731114182972,0.2256,2983.7,2982.0,3.65634223]
[1731114183460,0.01,2983.2,2982.0,2.83784223]
[1731114183662,0.2256,2983.1,2981.7,2.83784223]
[1731114184761,0.55,2982.7,2981.1,0.8185]
[1731114184971,0.55,2982.7,2981.1,0.43709356]
[1731114184972,0.2256,2982.6,2981.1,0.43709356]
[1731114185666,0.2256,2982.6,2981.2,0.8185]
[1731114185828,0.2256,2982.6,2981.4,3.49500768]
[1731114186326,0.2256,2982.6,2981.8,3.49500768]
[1731114186567,0.2256,2982.6,2981.9,3.41655361]
[1731114186968,0.2256,2982.6,2981.2,0.8185]
[1731114187176,0.2356,2982.6,2980.9,0.8185]
[1731114187472,0.2256,2982.4,2980.6,4.31350768]
[1731114187639,0.2256,2982.4,2980.7,0.43135077]
[1731114188260,0.2256,2982.2,2980.7,0.43135077]
[1731114188765,0.2256,2982.2,2980.8,0.06708206]
[1731114189947,0.2256,2982.0,2980.8,0.06708206]
[1731114190263,0.2256,2982.0,2980.7,3.43135077]
[1731114190465,0.2256,2982.0,2980.8,0.69263585]
[1731114190652,0.01,2982.4,2980.4,0.34910741]
[1731114190653,0.2356,2981.8,2980.4,0.34910741]
[1731114190859,0.2256,2981.5,2980.0,0.8185]
[1731114191727,0.2256,2981.5,2980.2,3.49500768]
[1731114191969,0.2256,2981.5,2980.3,0.06709132]
[1731114192165,0.2256,2981.5,2980.4,0.3562099]
[1731114192652,0.2256,2981.5,2980.5,0.06708886]
[1731114194779,0.2256,2981.5,2980.4,0.3562099]
[1731114195871,0.2256,2981.5,2980.5,0.06708894]
[1731114197363,0.2256,2981.5,2980.4,0.3562099]
[1731114197553,0.2256,2981.4,2980.5,0.41747099]
[1731114197753,0.2256,2981.4,2980.4,0.3562099]
[1731114198568,0.2256,2981.4,2980.3,3.0]
[1731114198735,0.2256,2981.4,2979.8,3.84363768]
[1731114198940,0.2256,2981.4,2979.8,3.49500768]
[1731114199968,0.2356,2981.4,2979.8,3.49500768]
[1731114200180,0.2356,2981.4,2979.0,0.06824957]
[1731114200181,0.2256,2981.3,2979.4,3.49500768]
[1731114200353,0.2256,2981.1,2979.5,0.34950077]
[1731114200765,0.2256,2980.9,2979.5,0.34950077]
[1731114201086,0.2356,2980.9,2979.5,0.34950077]
[1731114201264,0.2356,2980.9,2979.6,0.38445085]
[1731114201440,0.2356,2980.9,2979.4,3.49500768]
[1731114202142,0.2356,2980.9,2979.5,3.0]
[1731114202343,0.2256,2980.9,2979.5,3.0]
[1731114203272,0.2256,2980.3,2979.1,0.0671086]
[1731114203478,0.2256,2980.3,2978.6,4.31280768]
[1731114203637,0.2256,2980.3,2978.7,0.4984031]
[1731114204079,0.2256,2980.3,2978.7,0.43128077]
[1731114204436,0.2356,2980.3,2978.7,0.43128077]
[1731114205981,0.2256,2980.3,2978.2,0.8178]
[1731114206184,0.2256,2980.3,2977.3,7.36]
[1731114206185,0.2256,2979.7,2977.8,4.31280768]
[1731114206487,0.2356,2979.7,2977.8,4.31280768]
[1731114206708,0.2356,2979.7,2977.9,0.43128077]
[1731114207475,0.01,2979.6,2977.9,0.43128077]
[1731114207747,0.2256,2979.3,2977.9,0.43128077]
[1731114209248,0.2256,2979.3,2977.9,3.43128077]
[1731114210691,0.56,2979.2,2977.9,3.43128077]
[1731114210897,0.2256,2979.1,2978.0,0.06715042]
[1731114211401,0.2256,2979.1,2977.9,3.0]
[1731114211694,0.2256,2979.1,2977.5,3.0]
[1731114211913,0.2256,2979.1,2977.6,0.64950077]
[1731114212900,0.2256,2978.9,2977.6,0.64950077]
[1731114214576,0.2256,2978.9,2977.8,3.49500768]
[1731114215285,0.2256,2978.9,2977.9,3.06714761]
[1731114216402,0.2256,2978.9,2977.9,3.89044761]
[1731114216604,0.2256,2978.9,2978.3,3.0]
[1731114216820,0.2256,2978.9,2978.4,0.06713924]
[1731114217375,0.2256,2978.9,2978.3,3.0]
[1731114217889,0.2256,2979.9,2978.4,0.06713481]
[1731114218205,0.2256,2979.9,2978.3,3.0]
[1731114218511,0.2256,2979.9,2978.4,0.64950077]
[1731114218717,0.2256,2979.9,2978.5,0.06712996]
[1731114219218,0.2256,2979.9,2978.4,0.64950077]
[1731114223720,0.2256,2979.9,2978.5,0.06712989]
[1731114224016,0.2256,2979.9,2978.4,0.64950077]
[1731114224181,0.2256,2979.9,2978.5,0.36495008]
[1731114226842,0.2256,2979.9,2978.7,3.0]
[1731114227493,0.2256,2979.9,2978.8,0.06712986]
[1731114228350,0.2256,2979.9,2979.0,3.49500768]
[1731114228634,0.2256,2979.9,2979.1,3.34950077]
[1731114233320,0.2256,2979.9,2979.3,2.84325383]
[1731114233507,0.2256,2979.9,2979.4,3.0]
[1731114236469,0.2256,2979.9,2978.8,2.144552]
[1731114236470,0.2256,2979.9,2978.8,4.342052]
[1731114236755,0.2256,2979.9,2978.8,3.0]
[1731114236955,0.2256,2979.9,2978.8,3.58432538]
[1731114237762,0.2256,2979.9,2978.4,2.84325383]
[1731114237974,0.2256,2979.7,2978.1,2.84325383]
[1731114238266,0.2256,2979.5,2978.1,2.84325383]
[1731114240040,0.2256,2979.5,2978.2,3.0]
[1731114240928,0.2256,2979.5,2978.4,2.84325383]
[1731114241228,0.2256,2979.5,2978.7,2.84325383]
[1731114241761,0.2256,2979.5,2978.8,0.06712655]
[1731114242145,0.2256,2979.5,2979.0,2.84325383]
[1731114242461,0.2256,2979.5,2979.1,0.06712149]
[1731114243277,0.2256,2980.2,2979.4,3.0]
[1731114243681,0.2256,2980.2,2979.5,0.06711253]
[1731114243852,0.2256,2980.2,2979.4,3.0]
[1731114244052,0.2256,2980.2,2979.5,0.06711191]
[1731114244476,0.2256,2980.2,2979.4,3.58432538]
[1731114245864,0.2256,2980.2,2979.1,3.0]
[1731114246955,0.2256,2980.2,2978.6,0.8261]
[1731114246956,0.2256,2980.2,2978.8,3.0]
[1731114247566,0.7756,2980.1,2978.4,2.84325383]
[1731114247766,0.2256,2979.8,2978.4,2.84325383]
[1731114248850,0.2256,2979.8,2978.5,3.0]
[1731114249894,0.2256,2979.8,2978.6,0.06713268]
[1731114250066,0.2256,2979.8,2978.8,3.0]
[1731114250959,0.2256,2979.8,2978.9,0.06712412]
[1731114251165,0.2256,2979.8,2978.8,3.0]
[1731114251378,0.2256,2979.8,2978.8,3.58432538]
[1731114252176,0.2256,2979.8,2978.9,0.0671241]
[1731114252566,0.2256,2979.8,2978.8,3.58432538]
[1731114253502,0.2256,2979.8,2978.8,3.65144945]
[1731114253706,0.2256,2979.8,2978.8,3.58432538]
[1731114253865,0.2256,2979.8,2978.9,0.64275792]
[1731114256611,0.2256,2979.8,2978.8,3.0]
[1731114259015,0.2256,2979.8,2979.0,2.84325383]
[1731114259210,0.2256,2979.8,2979.1,0.06712109]
[1731114259526,0.2256,2979.8,2979.1,3.06712109]
[1731114260398,0.2256,2979.8,2979.1,3.0]
[1731114260567,0.2256,2979.8,2978.8,3.0]
[1731114262306,0.2256,2979.8,2978.8,3.58432538]
[1731114263315,0.2256,2979.8,2979.0,2.84325383]
[1731114263985,0.2256,2979.8,2978.8,3.58432538]
[1731114264380,0.2256,2979.8,2979.0,2.84325383]
[1731114264711,0.2256,2979.8,2979.1,0.06711753]
[1731114265011,0.2256,2979.8,2979.1,0.29103714]
[1731114265212,0.2256,2979.8,2978.8,3.58432538]
[1731114266888,0.2256,2979.8,2978.1,3.0]
[1731114267088,0.2256,2979.6,2978.0,2.84325383]
[1731114267411,0.2256,2979.4,2978.0,2.84325383]
[1731114267615,0.2256,2979.4,2978.1,0.28432538]
[1731114267616,0.2256,2979.2,2978.1,0.28432538]
[1731114268489,0.2256,2979.2,2978.0,2.84325383]
[1731114271313,0.2256,2979.0,2977.8,3.0]
[1731114272494,0.2256,2979.0,2977.2,0.711278]
[1731114272495,3.55,2978.9,2977.2,0.711278]
[1731114272693,0.2256,2978.8,2977.1,0.1401133]
[1731114272877,0.2256,2978.7,2977.3,2.84325383]
[1731114273083,0.2256,2978.7,2977.4,0.06715785]
[1731114273289,0.2256,2978.7,2977.3,2.84325383]
[1731114273521,0.2256,2978.7,2977.4,0.06715784]
[1731114273828,0.2256,2978.7,2977.3,2.84325383]
[1731114274013,0.2256,2978.7,2977.4,3.0]
[1731114275431,0.2256,2978.7,2977.1,0.1401133]
[1731114275590,0.2256,2978.7,2977.3,3.0]
[1731114275923,0.2256,2978.6,2977.3,3.0]
[1731114276987,0.2256,2978.6,2977.5,2.84325383]
[1731114277789,0.2256,2978.6,2977.6,0.06715861]
[1731114278188,0.2256,2978.6,2977.6,0.06715814]
[1731114278727,0.2256,2978.6,2977.5,2.84325383]
[1731114279029,0.2256,2978.6,2977.5,2.91041197]
[1731114279321,0.2256,2978.6,2977.5,2.84325383]
[1731114279527,0.2256,2978.6,2977.5,3.42757921]
[1731114279828,0.2256,2978.6,2977.8,2.84325383]
[1731114279990,0.2256,2978.6,2977.9,0.06714855]
[1731114281242,0.2256,2978.6,2977.8,2.84325383]
[1731114281397,0.2256,2978.6,2977.9,3.0]
[1731114281600,0.2256,2978.6,2978.0,0.58432538]
[1731114282738,0.2256,2978.6,2978.1,2.9103963]
[1731114282941,0.2256,2979.8,2978.2,3.0]
[1731114283135,0.2256,2979.8,2978.4,2.84325383]
[1731114283347,0.2256,2979.8,2978.5,3.06713231]
[1731114284545,0.2256,2979.8,2978.5,3.0]
[1731114295547,0.2256,2979.8,2978.8,3.0]
[1731114295754,0.2256,2979.8,2978.9,0.06711898]
[1731114295953,0.2256,2979.8,2979.0,0.3067119]
[1731114296766,0.2256,2979.8,2979.1,3.06711835]
[1731114297058,0.2256,2979.8,2979.3,2.84325383]
[1731114297419,0.2256,2979.8,2979.1,3.0]
[1731114299549,0.2256,2979.8,2979.2,3.0]
[1731114299754,0.2256,2979.8,2979.3,0.58432538]
[1731114299929,0.2256,2979.8,2979.4,2.91036696]
[1731114300328,0.2256,2981.0,2979.4,2.91036696]
[1731114300531,0.2256,2981.0,2979.8,3.0]
[1731114302218,0.2256,2981.0,2979.5,3.0]
[1731114302541,0.2256,2981.0,2979.5,3.72150792]
[1731114302851,0.2256,2980.9,2979.6,0.06710465]
[1731114303012,0.2256,2980.9,2979.3,0.06710983]
[1731114303218,0.2256,2980.9,2979.4,2.84325383]
[1731114303429,0.2256,2980.9,2979.0,1.0942119]
[1731114303430,0.2256,2980.7,2979.1,2.84325383]
[1731114303655,0.2256,2980.5,2979.0,0.3067119]
[1731114303853,0.2256,2980.5,2978.8,2.84325383]
[1731114304026,0.2256,2980.2,2978.5,2.84325383]
[1731114304353,0.2256,2980.0,2978.6,0.41856278]
[1731114305528,0.2256,2980.0,2978.6,3.41856278]
[1731114305746,0.2256,2979.8,2978.6,0.41856278]
[1731114306058,0.2256,2979.8,2978.3,1.342447]
[1731114306650,0.2256,2979.8,2978.3,1.40957956]
[1731114307156,0.2256,2979.8,2978.3,4.40957956]
[1731114307867,0.2256,2979.8,2978.3,4.342447]
[1731114308157,0.2256,2979.8,2978.4,0.71857008]
[1731114308960,0.2256,2979.8,2978.5,2.84325383]
[1731114309126,0.2256,2979.8,2978.6,3.0]
[1731114311274,0.2256,2979.8,2979.1,2.84325383]
[1731114311423,0.2256,2979.8,2979.2,0.06711815]
[1731114312324,0.2256,2979.8,2979.2,0.35815535]
[1731114313363,0.2256,2979.8,2979.4,2.84325383]
[1731114313673,0.2256,2979.8,2979.5,0.06711129]
[1731114313835,0.2256,2979.8,2979.5,3.06711129]
[1731114314867,0.2256,2979.8,2979.5,3.0]
[1731114315169,0.2256,2979.8,2979.6,0.58432538]
[1731114316398,0.2256,2979.8,2979.7,2.84325383]
[1731114316529,0.7756,2981.1,2979.7,2.84325383]
[1731114316735,0.2256,2981.0,2979.7,2.84325383]
[1731114317259,0.2256,2981.0,2979.8,0.06710489]
[1731114317464,0.2256,2981.0,2980.0,2.84325383]
[1731114317676,0.2256,2981.0,2980.1,0.06709566]
[1731114318264,0.2256,2981.0,2980.0,2.84325383]
[1731114318857,0.2256,2981.0,2980.1,0.06709295]
[1731114319377,0.2256,2981.0,2980.4,3.0]
[1731114319539,0.2256,2981.0,2980.5,0.06708818]
[1731114320035,0.2256,2981.0,2980.4,3.58432538]
[1731114320238,0.2256,2981.0,2980.6,2.84325383]